fUSD/lending_fUSD_20250629
["ID","MTS","AMOUNT","RATE_DAILY","PERIOD"]
[368511292,1751194241193,-7433.6409149,0.00027243,2]
[368511293,1751194241203,-7708.68562875,0.00027298,2]
[368511294,1751194241212,-7993.90699701,0.00027353,2]
[368511295,1751194241221,-501.55560422,0.0002737,2]
[368511296,1751194241230,-500.0,0.00027373,2]
[368511297,1751194241238,-500.0,0.00027373,2]
[368511298,1751194241247,-453.30319219,0.00027373,2]
[368511299,1751194241257,-490.0,0.00027397,3]
[368511300,1751194241266,-490.0,0.00027397,3]
[368511301,1751194241275,-490.0,0.00027397,3]
[368511302,1751194241284,-490.0,0.00027397,3]
[368511303,1751194241293,-493.69837348,0.00027397,3]
[368511304,1751194241302,-490.0,0.00027397,3]
[368511305,1751194241311,-490.0,0.00027397,3]
[368511306,1751194241320,-491.52987477,0.00027397,3]
[368511307,1751194241330,-490.0,0.00027397,3]
[368511308,1751194241339,-490.0,0.00027397,3]
[368511309,1751194241348,-490.0,0.00027397,3]
[368511310,1751194241357,-490.0,0.00027397,3]
[368511311,1751194241367,-490.0,0.00027397,3]
[368511312,1751194241376,-490.0,0.00027397,3]
[368511313,1751194241385,-517.38207832,0.00027397,3]
[368511314,1751194241394,-490.0,0.00027397,3]
[368511316,1751194241404,-171.43673575,0.00027397,3]
[368511318,1751194241413,-490.0,0.00027397,3]
[368511320,1751194241422,-490.0,0.00027397,3]
[368511322,1751194241432,-490.0,0.00027397,3]
[368511324,1751194241441,-490.0,0.00027397,3]
[368511326,1751194241450,-503.23002652,0.00027397,3]
[368511328,1751194241459,-490.0,0.00027397,3]
[368511330,1751194241468,-490.0,0.00027397,3]
[368511332,1751194241477,-490.0,0.00027397,3]
[368511334,1751194241486,-534.25497618,0.00027397,3]
[368511336,1751194241495,-490.0,0.00027397,3]
[368511338,1751194241504,-490.0,0.00027397,3]
[368511340,1751194241512,-1000.0,0.00027397,3]
[368511342,1751194241521,-490.0,0.00027397,3]
[368511344,1751194241530,-490.0,0.00027397,3]
[368511346,1751194241539,-490.0,0.00027397,3]
[368511348,1751194241548,-153.255391,0.00027397,3]
[368511350,1751194241557,-153.46538,0.00027397,3]
[368511352,1751194241566,-329.205099,0.00027397,3]
[368511354,1751194241575,-449.52334321,0.00027397,3]
[368511356,1751194241584,-490.0,0.00027397,3]
[368511358,1751194241594,-490.0,0.00027397,3]
[368511360,1751194241603,-490.0,0.00027397,3]
[368511362,1751194241612,-490.0,0.00027397,3]
[368511364,1751194241621,-490.0,0.00027397,3]
[368511366,1751194241630,-490.0,0.00027397,3]
[368511368,1751194241639,-356.16180053,0.00027397,3]
[368511370,1751194241649,-490.0,0.00027397,3]
[368511372,1751194241658,-507.56040489,0.00027397,3]
[368511374,1751194241667,-196.340219,0.00027397,3]
[368511376,1751194241677,-490.0,0.00027397,3]
[368511378,1751194241686,-490.0,0.00027397,3]
[368511380,1751194241695,-490.0,0.00027397,3]
[368511382,1751194241704,-490.0,0.00027397,3]
[368511384,1751194241714,-490.0,0.00027397,3]
[368511386,1751194241726,-158.454067,0.00027397,3]
[368511388,1751194241737,-490.0,0.00027397,3]
[368511390,1751194241747,-491.29858789,0.00027397,3]
[368511392,1751194241756,-490.0,0.00027397,3]
[368511394,1751194241766,-490.0,0.00027397,3]
[368511396,1751194241775,-490.0,0.00027397,3]
[368511398,1751194241784,-490.0,0.00027397,3]
[368511400,1751194241794,-490.0,0.00027397,3]
[368511402,1751194241804,-490.0,0.00027397,3]
[368511404,1751194241815,-490.0,0.00027397,3]
[368511406,1751194241824,-490.0,0.00027397,3]
[368511408,1751194241833,-413.09487123,0.00027397,3]
[368511410,1751194241843,-490.0,0.00027397,3]
[368511412,1751194241852,-490.0,0.00027397,3]
[368511414,1751194241862,-490.0,0.00027397,3]
[368511416,1751194241871,-490.0,0.00027397,3]
[368511418,1751194241881,-190.414108,0.00027397,3]
[368511420,1751194241890,-151.959345,0.00027397,3]
[368511439,1751194242057,-554.36,0.00027397,3]
[368511441,1751194242066,-490.0,0.00027397,3]
[368511443,1751194242077,-490.0,0.00027397,3]
[368511445,1751194242087,-490.0,0.00027397,3]
[368511447,1751194242096,-490.0,0.00027397,3]
[368511449,1751194242105,-490.0,0.00027397,3]
[368511451,1751194242114,-490.0,0.00027397,3]
[368511453,1751194242123,-490.0,0.00027397,3]
[368511455,1751194242132,-490.0,0.00027397,3]
[368511458,1751194242145,-496.5552923,0.00027397,3]
[368511459,1751194242154,-490.0,0.00027397,3]
[368511461,1751194242164,-490.0,0.00027397,3]
[368511464,1751194242173,-632.51,0.00027397,3]
[368511467,1751194242182,-424.51642657,0.00027397,3]
[368511470,1751194242192,-490.0,0.00027397,3]
[368511473,1751194242201,-490.0,0.00027397,3]
[368511476,1751194242210,-490.0,0.00027397,3]
[368511479,1751194242219,-490.0,0.00027397,3]
[368511482,1751194242228,-532.4,0.00027397,3]
[368511485,1751194242237,-490.0,0.00027397,3]
[368511488,1751194242246,-490.0,0.00027397,3]
[368511491,1751194242255,-490.0,0.00027397,3]
[368511494,1751194242266,-490.0,0.00027397,3]
[368511497,1751194242275,-490.0,0.00027397,3]
[368511500,1751194242284,-157.072167,0.00027397,3]
[368511503,1751194242293,-508.12,0.00027397,3]
[368511506,1751194242302,-490.0,0.00027397,3]
[368511509,1751194242311,-500.01114063,0.00027397,3]
[368511512,1751194242321,-495.25959766,0.00027397,3]
[368511515,1751194242330,-490.0,0.00027397,3]
[368511518,1751194242339,-490.0,0.00027397,3]
[368511520,1751194242348,-701.73,0.00027397,3]
[368511524,1751194242357,-490.0,0.00027397,3]
[368511527,1751194242366,-494.99133852,0.00027397,3]
[368511530,1751194242375,-490.0,0.00027397,3]
[368511533,1751194242385,-490.0,0.00027397,3]
[368511536,1751194242394,-490.0,0.00027397,3]
[368511539,1751194242403,-490.0,0.00027397,3]
[368511542,1751194242413,-490.0,0.00027397,3]
[368511545,1751194242421,-490.0,0.00027397,3]
[368511548,1751194242431,-490.0,0.00027397,3]
[368511551,1751194242440,-490.0,0.00027397,3]
[368511553,1751194242450,-490.0,0.00027397,3]
[368511555,1751194242459,-490.0,0.00027397,3]
[368511557,1751194242468,-490.0,0.00027397,3]
[368511560,1751194242477,-490.0,0.00027397,3]
[368511563,1751194242487,-158.454064,0.00027397,3]
[368511566,1751194242496,-490.0,0.00027397,3]
[368511569,1751194242505,-151.959342,0.00027397,3]
[368511572,1751194242514,-490.0,0.00027397,3]
[368511575,1751194242523,-490.0,0.00027397,3]
[368511577,1751194242532,-493.18280511,0.00027397,3]
[368511579,1751194242541,-490.0,0.00027397,3]
[368511581,1751194242551,-764.95,0.00027397,3]
[368511583,1751194242560,-490.0,0.00027397,3]
[368511585,1751194242569,-490.0,0.00027397,3]
[368511587,1751194242578,-490.0,0.00027397,3]
[368511589,1751194242587,-490.0,0.00027397,3]
[368511591,1751194242597,-490.0,0.00027397,3]
[368511593,1751194242606,-490.0,0.00027397,3]
[368511595,1751194242615,-490.0,0.00027397,3]
[368511597,1751194242625,-490.0,0.00027397,3]
[368511599,1751194242635,-490.0,0.00027397,3]
[368511601,1751194242644,-490.0,0.00027397,3]
[368511603,1751194242654,-490.0,0.00027397,3]
[368511605,1751194242663,-490.0,0.00027397,3]
[368511607,1751194242673,-490.0,0.00027397,3]
[368511609,1751194242682,-490.0,0.00027397,3]
[368511611,1751194242691,-490.0,0.00027397,3]
[368511613,1751194242701,-490.0,0.00027397,3]
[368511615,1751194242710,-490.0,0.00027397,3]
[368511617,1751194242720,-490.0,0.00027397,3]
[368511619,1751194242729,-490.0,0.00027397,3]
[368511621,1751194242738,-490.0,0.00027397,3]
[368511623,1751194242748,-490.0,0.00027397,3]
[368511625,1751194242757,-490.0,0.00027397,3]
[368511627,1751194242766,-490.0,0.00027397,3]
[368511628,1751194242776,-490.0,0.00027397,3]
[368511630,1751194242785,-490.0,0.00027397,3]
[368511633,1751194242795,-953.82,0.00027397,3]
[368511634,1751194242805,-196.340211,0.00027397,3]
[368511636,1751194242815,-490.0,0.00027397,3]
[368511638,1751194242824,-490.0,0.00027397,3]
[368511641,1751194242833,-490.0,0.00027397,3]
[368511642,1751194242843,-504.58763187,0.00027397,3]
[368511645,1751194242853,-490.0,0.00027397,3]
[368511646,1751194242863,-490.0,0.00027397,3]
[368511649,1751194242872,-603.44,0.00027397,3]
[368511652,1751194242882,-490.0,0.00027397,3]
[368511655,1751194242891,-490.0,0.00027397,3]
[368511658,1751194242901,-490.0,0.00027397,3]
[368511661,1751194242910,-633.93,0.00027397,3]
[368511664,1751194242919,-490.0,0.00027397,3]
[368511666,1751194242929,-490.0,0.00027397,3]
[368511668,1751194242938,-864.91,0.00027397,3]
[368511670,1751194242947,-490.0,0.00027397,3]
[368511672,1751194242959,-497.74,0.00027397,3]
[368511674,1751194242969,-490.0,0.00027397,3]
[368511676,1751194242979,-490.0,0.00027397,3]
[368511678,1751194242988,-490.0,0.00027397,3]
[368511680,1751194242998,-491.41566246,0.00027397,3]
[368511682,1751194243008,-490.0,0.00027397,3]
[368511684,1751194243017,-490.0,0.00027397,3]
[368511686,1751194243026,-490.0,0.00027397,3]
[368511688,1751194243036,-490.0,0.00027397,3]
[368511690,1751194243045,-490.0,0.00027397,3]
[368511692,1751194243055,-490.0,0.00027397,3]
[368511694,1751194243064,-490.0,0.00027397,3]
[368511696,1751194243073,-490.0,0.00027397,3]
[368511698,1751194243082,-492.68069533,0.00027397,3]
[368511700,1751194243091,-756.13,0.00027397,3]
[368511702,1751194243100,-490.0,0.00027397,3]
[368511704,1751194243109,-490.0,0.00027397,3]
[368511706,1751194243118,-490.0,0.00027397,3]
[368511708,1751194243127,-542.44,0.00027397,3]
[368511710,1751194243136,-1332.54,0.00027397,3]
[368511712,1751194243145,-863.82,0.00027397,3]
[368511714,1751194243155,-490.0,0.00027397,3]
[368511716,1751194243164,-490.0,0.00027397,3]
[368511718,1751194243173,-490.0,0.00027397,3]
[368511720,1751194243182,-1500.0,0.00027397,14]
[368511722,1751194243191,-490.0,0.00027397,3]
[368511724,1751194243200,-200.0,0.00027397,2]
[368511726,1751194243210,-591.84,0.00027397,3]
[368511728,1751194243219,-490.0,0.00027397,3]
[368511730,1751194243229,-490.0,0.00027397,3]
[368511732,1751194243238,-490.0,0.00027397,3]
[368511734,1751194243247,-490.0,0.00027397,3]
[368511736,1751194243256,-490.0,0.00027397,3]
[368511738,1751194243266,-665.61,0.00027397,3]
[368511740,1751194243275,-418.92845179,0.00027397,3]
[368511742,1751194243284,-769.64,0.00027397,3]
[368511744,1751194243293,-490.0,0.00027397,3]
[368511746,1751194243302,-490.0,0.00027397,3]
[368511748,1751194243311,-490.0,0.00027397,3]
[368511750,1751194243320,-555.79,0.00027397,3]
[368511752,1751194243330,-490.0,0.00027397,3]
[368511754,1751194243339,-490.0,0.00027397,3]
[368511756,1751194243348,-490.0,0.00027397,3]
[368511758,1751194243357,-490.0,0.00027397,3]
[368511760,1751194243366,-490.0,0.00027397,3]
[368511762,1751194243375,-491.22,0.00027397,3]
[368511764,1751194243384,-490.0,0.00027397,3]
[368511766,1751194243393,-627.43,0.00027397,3]
[368511768,1751194243402,-490.0,0.00027397,3]
[368511770,1751194243411,-490.0,0.00027397,3]
[368511772,1751194243420,-490.0,0.00027397,3]
[368511774,1751194243430,-617.55,0.00027397,3]
[368511777,1751194243440,-1124.81,0.00027397,3]
[368511780,1751194243450,-621.58,0.00027397,3]
[368511782,1751194243459,-490.0,0.00027397,3]
[368511784,1751194243467,-1265.66,0.00027397,3]
[368511786,1751194243477,-354.52061501,0.00027397,3]
[368511788,1751194243486,-490.0,0.00027397,3]
[368511790,1751194243495,-490.0,0.00027397,3]
[368511792,1751194243505,-490.0,0.00027397,3]
[368511794,1751194243514,-490.0,0.00027397,3]
[368511796,1751194243523,-1066.44,0.00027397,3]
[368511798,1751194243532,-490.0,0.00027397,3]
[368511800,1751194243541,-490.0,0.00027397,3]
[368511802,1751194243550,-566.89090688,0.00027397,3]
[368511804,1751194243560,-495.66457892,0.00027397,3]
[368511806,1751194243569,-500.0,0.00027397,3]
[368511808,1751194243578,-490.0,0.00027397,3]
[368511810,1751194243587,-490.0,0.00027397,3]
[368511812,1751194243598,-606.66,0.00027397,3]
[368511814,1751194243607,-1075.06,0.00027397,3]
[368511816,1751194243616,-1063.39,0.00027397,3]
[368511818,1751194243625,-490.0,0.00027397,3]
[368511820,1751194243634,-596.29,0.00027397,3]
[368511822,1751194243644,-490.0,0.00027397,3]
[368511824,1751194243653,-490.0,0.00027397,3]
[368511826,1751194243662,-490.0,0.00027397,3]
[368511828,1751194243671,-490.0,0.00027397,3]
[368511829,1751194243681,-490.0,0.00027397,3]
[368511831,1751194243691,-620.94,0.00027397,3]
[368511834,1751194243702,-494.77463254,0.00027397,3]
[368511836,1751194243711,-493.85412714,0.00027397,3]
[368511838,1751194243721,-490.0,0.00027397,3]
[368511840,1751194243731,-490.0,0.00027397,3]
[368511842,1751194243742,-490.0,0.00027397,3]
[368511844,1751194243751,-550.0,0.00027397,3]
[368511846,1751194243761,-490.0,0.00027397,3]
[368511848,1751194243770,-490.0,0.00027397,3]
[368511850,1751194243780,-667.18,0.00027397,3]
[368511852,1751194243789,-490.0,0.00027397,3]
[368511854,1751194243800,-684.75,0.00027397,3]
[368511856,1751194243810,-490.0,0.00027397,3]
[368511858,1751194243819,-687.84,0.00027397,3]
[368511860,1751194243828,-490.0,0.00027397,3]
[368511862,1751194243838,-631.84116749,0.00027397,3]
[368511864,1751194243847,-490.0,0.00027397,3]
[368511866,1751194243857,-1683.35,0.00027397,3]
[368511868,1751194243866,-217.21451119,0.00027397,3]
[368511870,1751194243875,-925.73,0.00027397,3]
[368511872,1751194243885,-490.0,0.00027397,3]
[368511874,1751194243894,-884.56,0.00027397,3]
[368511876,1751194243904,-521.5,0.00027397,3]
[368511878,1751194243914,-490.0,0.00027397,3]
[368511880,1751194243923,-1254.49,0.00027397,3]
[368511882,1751194243933,-558.94,0.00027397,3]
[368511884,1751194243941,-490.0,0.00027397,3]
[368511886,1751194243951,-1250.48,0.00027397,3]
[368511888,1751194243963,-490.0,0.00027397,3]
[368511890,1751194243975,-490.0,0.00027397,3]
[368511892,1751194243984,-490.0,0.00027397,3]
[368511894,1751194243993,-490.0,0.00027397,3]
[368511896,1751194244003,-490.0,0.00027397,3]
[368511898,1751194244012,-681.06,0.00027397,3]
[368511900,1751194244021,-490.0,0.00027397,3]
[368511902,1751194244033,-1517.03,0.00027397,3]
[368511904,1751194244043,-490.0,0.00027397,3]
[368511906,1751194244053,-877.54,0.00027397,3]
[368511908,1751194244063,-490.0,0.00027397,3]
[368511910,1751194244072,-490.0,0.00027397,3]
[368511912,1751194244081,-490.93230356,0.00027397,3]
[368511914,1751194244091,-490.0,0.00027397,3]
[368511916,1751194244100,-586.92,0.00027397,3]
[368511918,1751194244110,-371.07331579,0.00027397,3]
[368511920,1751194244120,-760.76,0.00027397,3]
[368511938,1751194244278,-490.0,0.00027397,3]
[368511940,1751194244288,-490.0,0.00027397,3]
[368511942,1751194244297,-490.0,0.00027397,3]
[368511944,1751194244307,-493.67714922,0.00027397,3]
[368511946,1751194244316,-1020.66,0.00027397,3]
[368511948,1751194244325,-411.34912048,0.00027397,3]
[368511950,1751194244334,-490.0,0.00027397,3]
[368511952,1751194244343,-251.05325653,0.00027397,3]
[368511954,1751194244352,-1866.57,0.00027397,3]
[368511956,1751194244361,-490.0,0.00027397,3]
[368511958,1751194244369,-1288.09,0.00027397,3]
[368511960,1751194244378,-490.0,0.00027397,3]
[368511962,1751194244387,-490.0,0.00027397,3]
[368511964,1751194244397,-495.99325293,0.00027397,3]
[368511966,1751194244406,-490.0,0.00027397,3]
[368511968,1751194244415,-776.5,0.00027397,3]
[368511970,1751194244425,-490.0,0.00027397,3]
[368511972,1751194244435,-490.0,0.00027397,3]
[368511974,1751194244445,-490.0,0.00027397,3]
[368511976,1751194244455,-640.5,0.00027397,3]
[368511978,1751194244464,-490.0,0.00027397,3]
[368511980,1751194244474,-490.0,0.00027397,3]
[368511982,1751194244483,-308.96527889,0.00027397,3]
[368511984,1751194244491,-490.0,0.00027397,3]
[368511986,1751194244501,-499.32,0.00027397,3]
[368511988,1751194244510,-499.32,0.00027397,3]
[368511990,1751194244519,-689.12,0.00027397,3]
[368511992,1751194244529,-490.0,0.00027397,3]
[368511995,1751194244539,-491.9790884,0.00027397,3]
[368511997,1751194244548,-759.09,0.00027397,3]
[368511999,1751194244558,-490.0,0.00027397,3]
[368512000,1751194244567,-622.49,0.00027397,3]
[368512002,1751194244576,-930.36,0.00027397,3]
[368512004,1751194244585,-490.0,0.00027397,3]
[368512006,1751194244595,-500.0,0.00027397,3]
[368512008,1751194244604,-500.0,0.00027397,3]
[368512010,1751194244613,-195.37,0.00027397,3]
[368512012,1751194244623,-490.0,0.00027397,3]
[368512015,1751194244632,-490.0,0.00027397,3]
[368512016,1751194244642,-936.48,0.00027397,3]
[368512019,1751194244651,-1920.98,0.00027397,3]
[368512021,1751194244661,-490.0,0.00027397,3]
[368512023,1751194244670,-490.0,0.00027397,3]
[368512025,1751194244680,-490.0,0.00027397,3]
[368512027,1751194244690,-197.37867631,0.00027397,3]
[368512028,1751194244699,-490.0,0.00027397,3]
[368512030,1751194244708,-496.95745572,0.00027397,3]
[368512032,1751194244718,-494.47497067,0.00027397,3]
[368512034,1751194244728,-490.0,0.00027397,3]
[368512036,1751194244737,-340.30171521,0.00027397,3]
[368512038,1751194244748,-490.0,0.00027397,3]
[368512040,1751194244757,-814.04,0.00027397,3]
[368512042,1751194244767,-490.0,0.00027397,3]
[368512044,1751194244776,-500.0,0.00027397,2]
[368512046,1751194244786,-1148.44,0.00027397,3]
[368512048,1751194244795,-500.0,0.00027397,2]
[368512050,1751194244804,-490.0,0.00027397,3]
[368512052,1751194244814,-490.0,0.00027397,3]
[368512054,1751194244823,-490.0,0.00027397,3]
[368512056,1751194244833,-495.12774416,0.00027397,3]
[368512058,1751194244842,-1544.17,0.00027397,3]
[368512060,1751194244852,-490.0,0.00027397,3]
[368512062,1751194244861,-490.0,0.00027397,3]
[368512064,1751194244870,-490.0,0.00027397,3]
[368512066,1751194244880,-490.0,0.00027397,3]
[368512068,1751194244889,-1773.34,0.00027397,3]
[368512070,1751194244899,-490.0,0.00027397,3]
[368512072,1751194244908,-490.0,0.00027397,3]
[368512074,1751194244918,-490.0,0.00027397,3]
[368512076,1751194244927,-522.27,0.00027397,3]
[368512078,1751194244937,-490.0,0.00027397,3]
[368512080,1751194244947,-490.0,0.00027397,3]
[368512082,1751194244958,-501.36,0.00027397,3]
[368512084,1751194244969,-490.0,0.00027397,3]
[368512086,1751194244978,-490.0,0.00027397,3]
[368512088,1751194244988,-493.93537787,0.00027397,3]
[368512090,1751194244998,-490.0,0.00027397,3]
[368512092,1751194245007,-490.0,0.00027397,3]
[368512094,1751194245016,-490.0,0.00027397,3]
[368512097,1751194245026,-648.51,0.00027397,3]
[368512099,1751194245037,-490.0,0.00027397,3]
[368512100,1751194245047,-490.0,0.00027397,3]
[368512103,1751194245057,-803.16,0.00027397,3]
[368512105,1751194245067,-490.0,0.00027397,3]
[368512106,1751194245076,-1313.11,0.00027397,3]
[368512107,1751194245086,-490.0,0.00027397,3]
[368512108,1751194245094,-490.0,0.00027397,3]
[368512109,1751194245103,-490.0,0.00027397,3]
[368512110,1751194245112,-490.0,0.00027397,3]
[368512112,1751194245122,-490.0,0.00027397,3]
[368512113,1751194245131,-751.58,0.00027397,3]
[368512115,1751194245140,-648.86,0.00027397,3]
[368512116,1751194245148,-490.0,0.00027397,3]
[368512117,1751194245157,-490.0,0.00027397,3]
[368512118,1751194245166,-1739.9,0.00027397,3]
[368512119,1751194245175,-490.0,0.00027397,3]
[368512121,1751194245185,-523.88001568,0.00027397,3]
[368512123,1751194245194,-490.0,0.00027397,3]
[368512124,1751194245203,-490.0,0.00027397,3]
[368512125,1751194245212,-490.0,0.00027397,3]
[368512128,1751194245227,-514.77,0.00027397,3]
[368512130,1751194245243,-490.0,0.00027397,3]
[368512135,1751194245262,-490.0,0.00027397,3]
[368512138,1751194245280,-490.0,0.00027397,3]
[368512141,1751194245295,-490.0,0.00027397,3]
[368512144,1751194245312,-490.0,0.00027397,3]
[368512146,1751194245329,-1125.58,0.00027397,3]
[368512149,1751194245347,-667.65,0.00027397,3]
[368512152,1751194245365,-490.0,0.00027397,3]
[368512155,1751194245383,-1097.79,0.00027397,3]
[368512158,1751194245401,-745.5,0.00027397,3]
[368512161,1751194245415,-490.0,0.00027397,3]
[368512163,1751194245432,-490.0,0.00027397,3]
[368512166,1751194245446,-490.0,0.00027397,3]
[368512169,1751194245460,-490.0,0.00027397,3]
[368512171,1751194245477,-492.366916,0.00027397,3]
[368512174,1751194245491,-490.0,0.00027397,3]
[368512176,1751194245506,-492.31,0.00027397,3]
[368512179,1751194245521,-847.7,0.00027397,3]
[368512180,1751194245536,-490.0,0.00027397,3]
[368512182,1751194245551,-490.0,0.00027397,3]
[368512185,1751194245566,-641.45,0.00027397,3]
[368512187,1751194245581,-491.55080129,0.00027397,3]
[368512190,1751194245597,-490.0,0.00027397,3]
[368512191,1751194245612,-1986.36,0.00027397,3]
[368512192,1751194245632,-490.0,0.00027397,3]
[368512193,1751194245647,-490.0,0.00027397,3]
[368512194,1751194245663,-490.0,0.00027397,3]
[368512195,1751194245678,-490.0,0.00027397,3]
[368512196,1751194245694,-810.14,0.00027397,3]
[368512197,1751194245710,-613.92,0.00027397,3]
[368512198,1751194245725,-568.22,0.00027397,3]
[368512199,1751194245740,-490.0,0.00027397,3]
[368512200,1751194245756,-578.54660694,0.00027397,3]
[368512201,1751194245771,-682.37,0.00027397,3]
[368512203,1751194245788,-490.92911123,0.00027397,3]
[368512206,1751194245803,-591.74813656,0.00027397,3]
[368512207,1751194245819,-490.0,0.00027397,3]
[368512208,1751194245834,-490.0,0.00027397,3]
[368512209,1751194245850,-703.34,0.00027397,3]
[368512210,1751194245866,-490.0,0.00027397,3]
[368512211,1751194245881,-1604.97,0.00027397,3]
[368512212,1751194245897,-490.0,0.00027397,3]
[368512213,1751194245912,-490.0,0.00027397,3]
[368512214,1751194245928,-490.0,0.00027397,3]
[368512215,1751194245944,-490.0,0.00027397,3]
[368512216,1751194245959,-490.0,0.00027397,3]
[368512217,1751194245974,-490.0,0.00027397,3]
[368512218,1751194245990,-611.61,0.00027397,3]
[368512219,1751194246006,-490.0,0.00027397,3]
[368512220,1751194246020,-1548.89,0.00027397,3]
[368512221,1751194246035,-490.0,0.00027397,3]
[368512222,1751194246049,-490.0,0.00027397,3]
[368512223,1751194246064,-490.0,0.00027397,3]
[368512224,1751194246078,-490.0,0.00027397,3]
[368512225,1751194246093,-490.0,0.00027397,3]
[368512226,1751194246107,-490.0,0.00027397,3]
[368512227,1751194246122,-490.0,0.00027397,3]
[368512228,1751194246137,-490.0,0.00027397,3]
[368512229,1751194246151,-490.0,0.00027397,3]
[368512230,1751194246166,-648.53,0.00027397,3]
[368512231,1751194246181,-929.36,0.00027397,3]
[368512232,1751194246195,-490.0,0.00027397,3]
[368512233,1751194246210,-490.0,0.00027397,3]
[368512235,1751194246225,-490.0,0.00027397,3]
[368512238,1751194246241,-153.39866594,0.00027397,3]
[368512241,1751194246256,-490.0,0.00027397,3]
[368512243,1751194246271,-490.0,0.00027397,3]
[368512246,1751194246286,-598.65136984,0.00027397,3]
[368512248,1751194246300,-490.0,0.00027397,3]
[368512251,1751194246315,-491.553982,0.00027397,3]
[368512253,1751194246330,-708.68,0.00027397,3]
[368512256,1751194246345,-490.0,0.00027397,3]
[368512259,1751194246360,-490.0,0.00027397,3]
[368512261,1751194246376,-490.0,0.00027397,3]
[368512264,1751194246391,-490.0,0.00027397,3]
[368512267,1751194246406,-490.0,0.00027397,3]
[368512269,1751194246420,-490.0,0.00027397,3]
[368512272,1751194246435,-490.0,0.00027397,3]
[368512274,1751194246449,-490.0,0.00027397,3]
[368512277,1751194246464,-490.0,0.00027397,3]
[368512280,1751194246479,-490.0,0.00027397,3]
[368512282,1751194246494,-1367.54,0.00027397,3]
[368512284,1751194246508,-490.0,0.00027397,3]
[368512285,1751194246523,-1196.86,0.00027397,3]
[368512286,1751194246538,-490.0,0.00027397,3]
[368512287,1751194246553,-946.15,0.00027397,3]
[368512288,1751194246568,-490.0,0.00027397,3]
[368512289,1751194246583,-490.0,0.00027397,3]
[368512290,1751194246599,-490.0,0.00027397,3]
[368512291,1751194246614,-490.0,0.00027397,3]
[368512292,1751194246630,-887.21,0.00027397,3]
[368512293,1751194246645,-490.0,0.00027397,3]
[368512294,1751194246660,-490.0,0.00027397,3]
[368512295,1751194246670,-1881.05,0.00027397,3]
[368512296,1751194246680,-490.0,0.00027397,3]
[368512297,1751194246690,-490.0,0.00027397,3]
[368512298,1751194246700,-680.84,0.00027397,3]
[368512299,1751194246709,-490.0,0.00027397,3]
[368512300,1751194246718,-616.22,0.00027397,3]
[368512301,1751194246728,-1625.01,0.00027397,3]
[368512302,1751194246737,-490.0,0.00027397,3]
[368512318,1751194247033,-340.25774732,0.00027397,3]
[368512319,1751194247055,-684.45,0.00027397,3]